[Event "Titled Tuesday Blitz November 16 2021"]
[White "Sviridov, Valery"]
[Black "Sarana, Alexey"]
[WhiteFideId "4120680"]
[BlackFideId "24133795"]
[WhiteElo "2454"]
[BlackElo "2689"]
[Result "1-0"]
[Round "07"]
[TimeControl "180+1"]
[Date "2021.11.16"]
[WhiteClock "0:00:18"]
[BlackClock "0:00:06"]

1. Nf3 {[%clk 0:03:00]}  g6 {[%clk 0:03:00]} 2. g3 {[%clk 0:03:01]}  Bg7 {[%clk 0:03:01]} 3. Bg2 {[%clk 0:03:01]}  e5 {[%clk 0:03:01]} 4. O-O {[%clk 0:03:02]}  Ne7 {[%clk 0:03:02]} 5. c4 {[%clk 0:03:01]}  c6 {[%clk 0:03:01]} 6. Nc3 {[%clk 0:02:57]}  d5 {[%clk 0:02:59]} 7. d3 {[%clk 0:02:54]}  O-O {[%clk 0:02:59]} 8. Bg5 {[%clk 0:02:46]}  d4 {[%clk 0:02:55]} 9. Na4 {[%clk 0:02:44]}  b6 {[%clk 0:02:49]} 10. b4 {[%clk 0:02:42]}  Be6 {[%clk 0:02:43]} 11. Rb1 {[%clk 0:02:38]}  Nd7 {[%clk 0:02:37]} 12. Bd2 {[%clk 0:02:31]}  Rc8 {[%clk 0:02:36]} 13. Ng5 {[%clk 0:02:31]}  Bf5 {[%clk 0:02:35]} 14. Ne4 {[%clk 0:02:30]}  Nf6 {[%clk 0:02:33]} 15. Nxf6+ {[%clk 0:02:29]}  Bxf6 {[%clk 0:02:34]} 16. b5 {[%clk 0:02:15]}  c5 {[%clk 0:02:32]} 17. Nb2 {[%clk 0:02:15]}  h5 {[%clk 0:02:30]} 18. a4 {[%clk 0:02:15]}  h4 {[%clk 0:02:27]} 19. a5 {[%clk 0:02:15]}  h3 {[%clk 0:02:27]} 20. Bh1 {[%clk 0:02:12]}  Be6 {[%clk 0:02:16]} 21. Ra1 {[%clk 0:02:10]}  Nf5 {[%clk 0:02:15]} 22. axb6 {[%clk 0:02:08]}  axb6 {[%clk 0:02:16]} 23. Ra6 {[%clk 0:02:06]}  Rb8 {[%clk 0:02:16]} 24. Na4 {[%clk 0:02:06]}  Qc7 {[%clk 0:02:06]} 25. e4 {[%clk 0:01:51]}  dxe3 {[%clk 0:01:57]} 26. fxe3 {[%clk 0:01:52]}  Bg5 {[%clk 0:01:46]} 27. Qe2 {[%clk 0:01:45]}  Rfd8 {[%clk 0:01:43]} 28. Nc3 {[%clk 0:01:45]}  Qd6 {[%clk 0:01:32]} 29. Nd5 {[%clk 0:01:45]}  Kg7 {[%clk 0:01:29]} 30. Be4 {[%clk 0:01:41]}  Ne7 {[%clk 0:01:25]} 31. Nxe7 {[%clk 0:01:14]}  Bxe7 {[%clk 0:01:21]} 32. Bc3 {[%clk 0:01:12]}  f5 {[%clk 0:01:01]} 33. Bc6 {[%clk 0:01:12]}  Bf6 {[%clk 0:00:57]} 34. Ra7+ {[%clk 0:01:11]}  Kg8 {[%clk 0:00:57]} 35. Rd1 {[%clk 0:00:30]}  Bxc4 {[%clk 0:00:54]} 36. e4 {[%clk 0:00:30]}  Bb3 {[%clk 0:00:32]} 37. Rd2 {[%clk 0:00:24]}  Rbc8 {[%clk 0:00:28]} 38. exf5 {[%clk 0:00:24]}  Rxc6 {[%clk 0:00:24]} 39. bxc6 {[%clk 0:00:23]}  Qxc6 {[%clk 0:00:24]} 40. fxg6 {[%clk 0:00:19]}  e4 {[%clk 0:00:16]} 41. Qh5 {[%clk 0:00:18]}  Rd7 {[%clk 0:00:06]} 42. Rxd7 {[%clk 0:00:18]}  Qxd7 {[%clk 0:00:07]} 43. Bxf6 {[%clk 0:00:19]}  e3 {[%clk 0:00:06]} 44. Qh8# {[%clk 0:00:18]} 1-0


[Site "https://www.chess.com"]

[Event "Titled Tuesday Blitz November 16 2021"]
[White "Tologon tegin, Semetei"]
[Black "Shubin, Kirill"]
[WhiteFideId "13800574"]
[BlackFideId "34119962"]
[WhiteElo "2224"]
[BlackElo "2501"]
[Result "0-1"]
[Round "07"]
[TimeControl "180+1"]
[Date "2021.11.16"]
[WhiteClock "0:00:04"]
[BlackClock "0:00:16"]

1. e4 {[%clk 0:02:57]}  e6 {[%clk 0:03:00]} 2. d3 {[%clk 0:02:53]}  c5 {[%clk 0:02:59]} 3. Nd2 {[%clk 0:02:54]}  Nc6 {[%clk 0:02:59]} 4. g3 {[%clk 0:02:54]}  g6 {[%clk 0:02:59]} 5. Bg2 {[%clk 0:02:55]}  Bg7 {[%clk 0:03:00]} 6. f4 {[%clk 0:02:56]}  Nge7 {[%clk 0:03:00]} 7. Ngf3 {[%clk 0:02:56]}  O-O {[%clk 0:03:00]} 8. O-O {[%clk 0:02:57]}  d6 {[%clk 0:03:00]} 9. c3 {[%clk 0:02:57]}  Rb8 {[%clk 0:03:00]} 10. Rf2 {[%clk 0:02:49]}  b5 {[%clk 0:02:58]} 11. a3 {[%clk 0:02:48]}  a5 {[%clk 0:02:56]} 12. Nf1 {[%clk 0:02:47]}  b4 {[%clk 0:02:56]} 13. axb4 {[%clk 0:02:47]}  axb4 {[%clk 0:02:55]} 14. Qc2 {[%clk 0:02:45]}  bxc3 {[%clk 0:02:50]} 15. bxc3 {[%clk 0:02:46]}  Qb6 {[%clk 0:02:43]} 16. Be3 {[%clk 0:02:08]}  Qb3 {[%clk 0:02:36]} 17. Rc1 {[%clk 0:02:08]}  Ba6 {[%clk 0:02:26]} 18. Qd2 {[%clk 0:02:01]}  Rfd8 {[%clk 0:02:19]} 19. f5 {[%clk 0:01:31]}  exf5 {[%clk 0:02:16]} 20. Bh6 {[%clk 0:01:30]}  Bh8 {[%clk 0:02:01]} 21. Ng5 {[%clk 0:01:29]}  Ne5 {[%clk 0:01:48]} 22. exf5 {[%clk 0:01:16]}  Nxf5 {[%clk 0:01:44]} 23. Rxf5 {[%clk 0:01:14]}  gxf5 {[%clk 0:01:45]} 24. Nf3 {[%clk 0:00:58]}  Ng6 {[%clk 0:01:40]} 25. Ne3 {[%clk 0:00:58]}  Bc8 {[%clk 0:01:25]} 26. Nh4 {[%clk 0:00:52]}  Qb2 {[%clk 0:01:18]} 27. Rc2 {[%clk 0:00:43]}  Qa1+ {[%clk 0:01:17]} 28. Kf2 {[%clk 0:00:43]}  Bb7 {[%clk 0:01:03]} 29. Nexf5 {[%clk 0:00:39]}  Bxg2 {[%clk 0:00:58]} 30. Kxg2 {[%clk 0:00:39]}  Qa8+ {[%clk 0:00:57]} 31. Kh3 {[%clk 0:00:35]}  Qb7 {[%clk 0:00:55]} 32. Qg5 {[%clk 0:00:31]}  Qd7 {[%clk 0:00:54]} 33. g4 {[%clk 0:00:30]}  Re8 {[%clk 0:00:50]} 34. Rf2 {[%clk 0:00:28]}  Qd8 {[%clk 0:00:44]} 35. Qh5 {[%clk 0:00:23]}  Bf6 {[%clk 0:00:34]} 36. Nf3 {[%clk 0:00:16]}  Rb3 {[%clk 0:00:28]} 37. Bg5 {[%clk 0:00:10]}  Rxc3 {[%clk 0:00:25]} 38. Nh6+ {[%clk 0:00:07]}  Kg7 {[%clk 0:00:25]} 39. Nxf7 {[%clk 0:00:05]}  Qe7 {[%clk 0:00:19]} 40. Qh6+ {[%clk 0:00:04]}  Kg8 {[%clk 0:00:19]} 41. Bxf6 {[%clk 0:00:02]}  Qxf6 {[%clk 0:00:19]} 42. N7g5 {[%clk 0:00:03]}  Qg7 {[%clk 0:00:19]} 43. Qh5 {[%clk 0:00:03]}  Nf4+ {[%clk 0:00:19]} 44. Kh4 {[%clk 0:00:03]}  Nxh5 {[%clk 0:00:20]} 45. gxh5 {[%clk 0:00:04]}  Rxd3 {[%clk 0:00:20]} 46. Rg2 {[%clk 0:00:04]}  Kh8 {[%clk 0:00:19]} 47. Rg4 {[%clk 0:00:04]}  Rf8 {[%clk 0:00:17]} 48. h3 {[%clk 0:00:04]}  Qe7 {[%clk 0:00:16]} 49. Kg3 {[%clk 0:00:04]}  h6 {[%clk 0:00:16]} 0-1


[Site "https://www.chess.com"]

[Event "Titled Tuesday Blitz November 16 2021"]
[White "Yoo, Christopher Woojin"]
[Black "Tsvetkov, Andrey"]
[WhiteFideId "30909694"]
[BlackFideId "34139360"]
[WhiteElo "2105"]
[BlackElo "2280"]
[Result "1-0"]
[Round "07"]
[TimeControl "180+1"]
[Date "2021.11.16"]
[WhiteClock "0:00:48"]
[BlackClock "0:00:03"]

1. e4 {[%clk 0:03:00]}  c5 {[%clk 0:03:00]} 2. Nf3 {[%clk 0:02:58]}  d6 {[%clk 0:03:00]} 3. d4 {[%clk 0:02:57]}  cxd4 {[%clk 0:03:01]} 4. Nxd4 {[%clk 0:02:58]}  Nf6 {[%clk 0:03:02]} 5. Nc3 {[%clk 0:02:58]}  a6 {[%clk 0:03:02]} 6. h4 {[%clk 0:02:58]}  e5 {[%clk 0:03:00]} 7. Nf5 {[%clk 0:02:56]}  d5 {[%clk 0:02:49]} 8. Qf3 {[%clk 0:02:55]}  d4 {[%clk 0:02:31]} 9. Nd5 {[%clk 0:02:54]}  Nxd5 {[%clk 0:02:15]} 10. exd5 {[%clk 0:02:55]}  g6 {[%clk 0:02:14]} 11. Nh6 {[%clk 0:02:55]}  f5 {[%clk 0:02:10]} 12. h5 {[%clk 0:02:33]}  e4 {[%clk 0:01:41]} 13. Qg3 {[%clk 0:01:58]}  Bd6 {[%clk 0:01:03]} 14. Bf4 {[%clk 0:01:57]}  Qa5+ {[%clk 0:00:52]} 15. Kd1 {[%clk 0:01:55]}  Bxf4 {[%clk 0:00:40]} 16. Qxf4 {[%clk 0:01:56]}  Nd7 {[%clk 0:00:29]} 17. hxg6 {[%clk 0:01:33]}  hxg6 {[%clk 0:00:27]} 18. Qd6 {[%clk 0:01:33]}  Nf8 {[%clk 0:00:02]} 19. Nxf5 {[%clk 0:01:31]}  Bxf5 {[%clk 0:00:03]} 20. Rxh8 {[%clk 0:01:30]}  Kf7 {[%clk 0:00:04]} 21. b4 {[%clk 0:01:03]}  Qa4 {[%clk 0:00:03]} 22. Qc7+ {[%clk 0:01:01]}  Nd7 {[%clk 0:00:03]} 23. Rxa8 {[%clk 0:01:00]}  e3 {[%clk 0:00:03]} 24. fxe3 {[%clk 0:00:56]}  dxe3 {[%clk 0:00:04]} 25. Rd8 {[%clk 0:00:48]}  Qxb4 {[%clk 0:00:03]} 26. Rxd7+ {[%clk 0:00:48]}  Bxd7 {[%clk 0:00:03]} 27. Qxd7+ {[%clk 0:00:48]}  Kf6 {[%clk 0:00:03]} 28. Qe6+ {[%clk 0:00:48]} 1-0


[Site "https://www.chess.com"]

[Event "Titled Tuesday Blitz November 16 2021"]
[White "vizumatv4hoda"]
[Black "Svidler, Peter"]
[BlackFideId "4102142"]
[WhiteElo "2770"]
[BlackElo "2709"]
[Result "0-1"]
[Round "07"]
[TimeControl "180+1"]
[Date "2021.11.16"]
[WhiteClock "0:00:01"]
[BlackClock "0:00:26"]

1. e4 {[%clk 0:02:56]}  g6 {[%clk 0:02:59]} 2. d4 {[%clk 0:02:56]}  Bg7 {[%clk 0:03:00]} 3. Nf3 {[%clk 0:02:57]}  d6 {[%clk 0:03:00]} 4. Bc4 {[%clk 0:02:57]}  c5 {[%clk 0:02:55]} 5. dxc5 {[%clk 0:02:53]}  Qa5+ {[%clk 0:02:54]} 6. c3 {[%clk 0:02:48]}  Qxc5 {[%clk 0:02:54]} 7. Na3 {[%clk 0:02:46]}  Nf6 {[%clk 0:02:52]} 8. Be3 {[%clk 0:02:46]}  Qa5 {[%clk 0:02:52]} 9. Qc2 {[%clk 0:02:17]}  Nc6 {[%clk 0:02:51]} 10. O-O {[%clk 0:02:15]}  O-O {[%clk 0:02:51]} 11. h3 {[%clk 0:02:16]}  Bd7 {[%clk 0:02:48]} 12. Bb3 {[%clk 0:02:14]}  Rac8 {[%clk 0:02:46]} 13. Rfe1 {[%clk 0:02:12]}  b5 {[%clk 0:02:43]} 14. Rad1 {[%clk 0:02:05]}  Rfd8 {[%clk 0:02:28]} 15. Ng5 {[%clk 0:02:01]}  Be8 {[%clk 0:02:28]} 16. Qd3 {[%clk 0:01:41]}  Ne5 {[%clk 0:02:26]} 17. Qd4 {[%clk 0:01:33]}  h6 {[%clk 0:02:24]} 18. Nf3 {[%clk 0:01:20]}  Nxf3+ {[%clk 0:02:23]} 19. gxf3 {[%clk 0:01:21]}  Rd7 {[%clk 0:02:10]} 20. Qd2 {[%clk 0:01:13]}  a6 {[%clk 0:02:00]} 21. Bxh6 {[%clk 0:01:08]}  Rc5 {[%clk 0:01:41]} 22. Nc2 {[%clk 0:00:55]}  Rh5 {[%clk 0:01:39]} 23. Bxg7 {[%clk 0:00:55]}  Kxg7 {[%clk 0:01:40]} 24. Kg2 {[%clk 0:00:54]}  Rc7 {[%clk 0:01:34]} 25. Ne3 {[%clk 0:00:54]}  Bd7 {[%clk 0:01:22]} 26. Ng4 {[%clk 0:00:53]}  Qb6 {[%clk 0:01:06]} 27. Nxf6 {[%clk 0:00:34]}  Bxh3+ {[%clk 0:00:54]} 28. Kg3 {[%clk 0:00:31]}  exf6 {[%clk 0:00:54]} 29. Rh1 {[%clk 0:00:26]}  Rg5+ {[%clk 0:00:54]} 30. Kxh3 {[%clk 0:00:20]}  Rc8 {[%clk 0:00:53]} 31. Qxg5 {[%clk 0:00:15]}  fxg5 {[%clk 0:00:52]} 32. Kg2 {[%clk 0:00:14]}  a5 {[%clk 0:00:49]} 33. Rd5 {[%clk 0:00:13]}  a4 {[%clk 0:00:49]} 34. Bc2 {[%clk 0:00:14]}  a3 {[%clk 0:00:50]} 35. bxa3 {[%clk 0:00:08]}  Rxc3 {[%clk 0:00:49]} 36. Bb3 {[%clk 0:00:09]}  Qd8 {[%clk 0:00:40]} 37. Rhd1 {[%clk 0:00:08]}  g4 {[%clk 0:00:37]} 38. fxg4 {[%clk 0:00:05]}  Qh4 {[%clk 0:00:36]} 39. f3 {[%clk 0:00:05]}  Re3 {[%clk 0:00:35]} 40. R5d2 {[%clk 0:00:03]}  Qf6 {[%clk 0:00:34]} 41. Rf2 {[%clk 0:00:02]}  Qf4 {[%clk 0:00:34]} 42. Rd5 {[%clk 0:00:02]}  Re1 {[%clk 0:00:33]} 43. Rxb5 {[%clk 0:00:02]}  Qc1 {[%clk 0:00:33]} 44. Kh3 {[%clk 0:00:01]}  Rh1+ {[%clk 0:00:32]} 45. Kg3 {[%clk 0:00:02]}  Qg1+ {[%clk 0:00:32]} 46. Rg2 {[%clk 0:00:02]}  Qe1+ {[%clk 0:00:32]} 47. Kf4 {[%clk 0:00:02]}  Rh3 {[%clk 0:00:31]} 48. Rd5 {[%clk 0:00:01]}  Qf1 {[%clk 0:00:27]} 49. Ke3 {[%clk 0:00:01]}  Qxg2 {[%clk 0:00:26]} 0-1


[Site "https://www.chess.com"]

[Event "Titled Tuesday Blitz November 16 2021"]
[White "Ghazarian, Kirk"]
[Black "Ozen, Bahadir"]
[WhiteFideId "30908604"]
[BlackFideId "6337058"]
[WhiteElo "2003"]
[BlackElo "2503"]
[Result "0-1"]
[Round "08"]
[TimeControl "180+1"]
[Date "2021.11.16"]
[WhiteClock "0:00:02"]
[BlackClock "0:00:06"]

1. e4 {[%clk 0:03:00]}  e6 {[%clk 0:02:59]} 2. d4 {[%clk 0:03:00]}  d5 {[%clk 0:02:59]} 3. Nc3 {[%clk 0:03:01]}  Nf6 {[%clk 0:02:59]} 4. e5 {[%clk 0:03:00]}  Nfd7 {[%clk 0:02:57]} 5. Bd3 {[%clk 0:03:00]}  c5 {[%clk 0:02:54]} 6. f4 {[%clk 0:02:59]}  cxd4 {[%clk 0:02:42]} 7. Nce2 {[%clk 0:02:54]}  Nc6 {[%clk 0:02:43]} 8. Nf3 {[%clk 0:02:54]}  Bc5 {[%clk 0:02:38]} 9. a3 {[%clk 0:02:52]}  a5 {[%clk 0:02:37]} 10. O-O {[%clk 0:02:37]}  h6 {[%clk 0:02:22]} 11. Kh1 {[%clk 0:02:28]}  Qc7 {[%clk 0:01:59]} 12. b3 {[%clk 0:02:23]}  b5 {[%clk 0:01:07]} 13. Bxb5 {[%clk 0:02:12]}  Ba6 {[%clk 0:01:06]} 14. Bxa6 {[%clk 0:02:03]}  Rxa6 {[%clk 0:01:07]} 15. Bb2 {[%clk 0:02:03]}  Qb6 {[%clk 0:01:06]} 16. Qd3 {[%clk 0:01:56]}  Ra7 {[%clk 0:01:02]} 17. Nfxd4 {[%clk 0:01:52]}  Nxd4 {[%clk 0:01:02]} 18. Nxd4 {[%clk 0:01:49]}  g6 {[%clk 0:00:58]} 19. Nb5 {[%clk 0:01:46]}  Rb7 {[%clk 0:00:57]} 20. a4 {[%clk 0:01:46]}  Be7 {[%clk 0:00:54]} 21. Bd4 {[%clk 0:01:45]}  Qc6 {[%clk 0:00:53]} 22. Rac1 {[%clk 0:01:42]}  Nc5 {[%clk 0:00:50]} 23. Qd2 {[%clk 0:01:40]}  Ne4 {[%clk 0:00:49]} 24. Qxa5 {[%clk 0:01:35]}  O-O {[%clk 0:00:50]} 25. Qe1 {[%clk 0:01:30]}  Rd8 {[%clk 0:00:43]} 26. Qe3 {[%clk 0:01:23]}  Kh7 {[%clk 0:00:42]} 27. Nc3 {[%clk 0:01:17]}  Ba3 {[%clk 0:00:39]} 28. Rcd1 {[%clk 0:01:08]}  Rbd7 {[%clk 0:00:36]} 29. Rd3 {[%clk 0:01:00]}  Bb4 {[%clk 0:00:33]} 30. Na2 {[%clk 0:00:48]}  Be7 {[%clk 0:00:33]} 31. c3 {[%clk 0:00:45]}  Rb7 {[%clk 0:00:33]} 32. Nc1 {[%clk 0:00:45]}  Ba3 {[%clk 0:00:32]} 33. g4 {[%clk 0:00:37]}  Bxc1 {[%clk 0:00:32]} 34. Qxc1 {[%clk 0:00:38]}  Rxb3 {[%clk 0:00:32]} 35. f5 {[%clk 0:00:37]}  exf5 {[%clk 0:00:16]} 36. gxf5 {[%clk 0:00:36]}  g5 {[%clk 0:00:17]} 37. Qe3 {[%clk 0:00:20]}  Rb2 {[%clk 0:00:16]} 38. Qh3 {[%clk 0:00:17]}  Qa6 {[%clk 0:00:13]} 39. e6 {[%clk 0:00:11]}  f6 {[%clk 0:00:11]} 40. Qe3 {[%clk 0:00:08]}  Rd2 {[%clk 0:00:08]} 41. Rf3 {[%clk 0:00:04]}  Ra2 {[%clk 0:00:03]} 42. Rd1 {[%clk 0:00:03]}  Qxa4 {[%clk 0:00:03]} 43. Qd3 {[%clk 0:00:04]}  Ra1 {[%clk 0:00:03]} 44. Rxa1 {[%clk 0:00:03]}  Qxa1+ {[%clk 0:00:04]} 45. Rf1 {[%clk 0:00:04]}  Qa2 {[%clk 0:00:04]} 46. Rb1 {[%clk 0:00:04]}  Nf2+ {[%clk 0:00:03]} 47. Bxf2 {[%clk 0:00:04]}  Qxf2 {[%clk 0:00:04]} 48. Rb7+ {[%clk 0:00:04]}  Kh8 {[%clk 0:00:04]} 49. Qd4 {[%clk 0:00:04]}  Qf1+ {[%clk 0:00:04]} 50. Qg1 {[%clk 0:00:04]}  Qf3+ {[%clk 0:00:05]} 51. Qg2 {[%clk 0:00:04]}  Qd1+ {[%clk 0:00:05]} 52. Qg1 {[%clk 0:00:05]}  Qf3+ {[%clk 0:00:06]} 53. Qg2 {[%clk 0:00:05]}  Qxf5 {[%clk 0:00:06]} 54. Qe2 {[%clk 0:00:06]}  Qe4+ {[%clk 0:00:05]} 55. Qxe4 {[%clk 0:00:05]}  dxe4 {[%clk 0:00:06]} 56. Rf7 {[%clk 0:00:03]}  Re8 {[%clk 0:00:02]} 57. Rxf6 {[%clk 0:00:03]}  Kg7 {[%clk 0:00:03]} 58. Rf7+ {[%clk 0:00:03]}  Kg6 {[%clk 0:00:03]} 59. Rf2 {[%clk 0:00:02]}  e3 {[%clk 0:00:03]} 60. Re2 {[%clk 0:00:03]}  Rxe6 {[%clk 0:00:04]} 61. Kg2 {[%clk 0:00:04]}  Kf5 {[%clk 0:00:04]} 62. Kf3 {[%clk 0:00:04]}  g4+ {[%clk 0:00:05]} 63. Kg3 {[%clk 0:00:04]}  h5 {[%clk 0:00:06]} 64. Kh4 {[%clk 0:00:03]}  Kf4 {[%clk 0:00:06]} 65. Kxh5 {[%clk 0:00:03]}  Kf3 {[%clk 0:00:06]} 66. Re1 {[%clk 0:00:04]}  e2 {[%clk 0:00:06]} 67. c4 {[%clk 0:00:04]}  Re4 {[%clk 0:00:06]} 68. c5 {[%clk 0:00:04]}  Re5+ {[%clk 0:00:06]} 69. Kh4 {[%clk 0:00:03]}  Rxc5 {[%clk 0:00:07]} 70. Rg1 {[%clk 0:00:02]}  Rc4 {[%clk 0:00:06]} 71. Rg3+ {[%clk 0:00:02]} 0-1


[Site "https://www.chess.com"]

[Event "Titled Tuesday Blitz November 16 2021"]
[White "Ibrahimli, Murad"]
[Black "Mikhailovsky, Vladimir"]
[WhiteFideId "13410229"]
[BlackFideId "34105414"]
[WhiteElo "2109"]
[BlackElo "2409"]
[Result "1-0"]
[Round "08"]
[TimeControl "180+1"]
[Date "2021.11.16"]
[WhiteClock "0:01:33"]
[BlackClock "0:00:06"]

1. c4 {[%clk 0:03:00]}  c6 {[%clk 0:02:58]} 2. Nc3 {[%clk 0:03:00]}  d5 {[%clk 0:02:54]} 3. d4 {[%clk 0:03:01]}  Nf6 {[%clk 0:02:54]} 4. Nf3 {[%clk 0:03:01]}  dxc4 {[%clk 0:02:53]} 5. a4 {[%clk 0:02:57]}  Bg4 {[%clk 0:02:53]} 6. Ne5 {[%clk 0:02:56]}  Nbd7 {[%clk 0:02:53]} 7. Nxg4 {[%clk 0:02:54]}  Nxg4 {[%clk 0:02:54]} 8. e3 {[%clk 0:02:54]}  Ngf6 {[%clk 0:02:46]} 9. Bxc4 {[%clk 0:02:53]}  e6 {[%clk 0:02:44]} 10. O-O {[%clk 0:02:53]}  Bb4 {[%clk 0:02:44]} 11. Qb3 {[%clk 0:02:46]}  a5 {[%clk 0:02:22]} 12. Na2 {[%clk 0:02:45]}  Bd6 {[%clk 0:01:57]} 13. Qc2 {[%clk 0:02:40]}  O-O {[%clk 0:01:51]} 14. h3 {[%clk 0:02:35]}  e5 {[%clk 0:01:45]} 15. dxe5 {[%clk 0:02:33]}  Nxe5 {[%clk 0:01:45]} 16. Be2 {[%clk 0:02:33]}  Qe7 {[%clk 0:01:38]} 17. b3 {[%clk 0:02:28]}  Nf3+ {[%clk 0:01:01]} 18. Bxf3 {[%clk 0:02:12]}  Qe5 {[%clk 0:01:01]} 19. Rd1 {[%clk 0:02:12]}  Qxa1 {[%clk 0:00:31]} 20. Rxd6 {[%clk 0:01:50]}  Rad8 {[%clk 0:00:30]} 21. Rxd8 {[%clk 0:01:44]}  Rxd8 {[%clk 0:00:31]} 22. Nc3 {[%clk 0:01:42]}  Nd5 {[%clk 0:00:23]} 23. Nxd5 {[%clk 0:01:38]}  cxd5 {[%clk 0:00:24]} 24. Qb2 {[%clk 0:01:36]}  Qxb2 {[%clk 0:00:20]} 25. Bxb2 {[%clk 0:01:37]}  f6 {[%clk 0:00:19]} 26. Bc3 {[%clk 0:01:34]}  b6 {[%clk 0:00:18]} 27. Bd4 {[%clk 0:01:35]}  Rd6 {[%clk 0:00:14]} 28. Be2 {[%clk 0:01:35]}  Kf7 {[%clk 0:00:14]} 29. Bb5 {[%clk 0:01:36]}  Ke6 {[%clk 0:00:14]} 30. f4 {[%clk 0:01:36]}  Kf5 {[%clk 0:00:11]} 31. Kf2 {[%clk 0:01:36]}  g5 {[%clk 0:00:10]} 32. g4+ {[%clk 0:01:35]}  Ke6 {[%clk 0:00:10]} 33. f5+ {[%clk 0:01:35]}  Ke7 {[%clk 0:00:10]} 34. Ke2 {[%clk 0:01:35]}  Kd8 {[%clk 0:00:10]} 35. Kd3 {[%clk 0:01:35]}  Kc7 {[%clk 0:00:10]} 36. Bb2 {[%clk 0:01:33]}  h6 {[%clk 0:00:08]} 37. Ba3 {[%clk 0:01:33]}  Rd8 {[%clk 0:00:06]} 38. Be7 {[%clk 0:01:33]} 1-0


[Site "https://www.chess.com"]

[Event "Titled Tuesday Blitz November 16 2021"]
[White "Karpeshov, Oleg"]
[Black "Gabrielian, Artur"]
[WhiteFideId "4106814"]
[BlackFideId "4131002"]
[WhiteElo "2354"]
[BlackElo "2440"]
[Result "0-1"]
[Round "08"]
[TimeControl "180+1"]
[Date "2021.11.16"]
[WhiteClock "0:00:17"]
[BlackClock "0:00:41"]

1. d4 {[%clk 0:03:00]}  Nf6 {[%clk 0:02:59]} 2. c4 {[%clk 0:03:00]}  c5 {[%clk 0:03:00]} 3. d5 {[%clk 0:03:00]}  e6 {[%clk 0:03:00]} 4. Nc3 {[%clk 0:02:57]}  exd5 {[%clk 0:03:01]} 5. cxd5 {[%clk 0:02:57]}  d6 {[%clk 0:03:01]} 6. Nf3 {[%clk 0:02:57]}  g6 {[%clk 0:03:02]} 7. g3 {[%clk 0:02:57]}  Bg7 {[%clk 0:03:02]} 8. Bg2 {[%clk 0:02:57]}  O-O {[%clk 0:03:03]} 9. O-O {[%clk 0:02:57]}  Re8 {[%clk 0:03:03]} 10. Bf4 {[%clk 0:02:56]}  Bf5 {[%clk 0:02:58]} 11. Qb3 {[%clk 0:02:52]}  Na6 {[%clk 0:02:43]} 12. Nh4 {[%clk 0:02:52]}  Bg4 {[%clk 0:02:14]} 13. h3 {[%clk 0:02:48]}  Bc8 {[%clk 0:02:13]} 14. Nf3 {[%clk 0:02:37]}  Nc7 {[%clk 0:02:09]} 15. Rfd1 {[%clk 0:02:21]}  Ne4 {[%clk 0:02:01]} 16. Qc2 {[%clk 0:02:10]}  Bf5 {[%clk 0:01:54]} 17. Qb3 {[%clk 0:01:44]}  Nxc3 {[%clk 0:01:52]} 18. bxc3 {[%clk 0:01:44]}  b5 {[%clk 0:01:29]} 19. g4 {[%clk 0:01:33]}  Be4 {[%clk 0:01:27]} 20. a4 {[%clk 0:01:20]}  b4 {[%clk 0:01:23]} 21. cxb4 {[%clk 0:01:18]}  Bxa1 {[%clk 0:01:22]} 22. Rxa1 {[%clk 0:01:10]}  Nxd5 {[%clk 0:01:21]} 23. Bg5 {[%clk 0:01:05]}  Qb8 {[%clk 0:01:20]} 24. b5 {[%clk 0:01:00]}  Qc7 {[%clk 0:01:12]} 25. Rd1 {[%clk 0:00:58]}  c4 {[%clk 0:01:11]} 26. Qa3 {[%clk 0:00:56]}  c3 {[%clk 0:01:09]} 27. Nd4 {[%clk 0:00:43]}  Bxg2 {[%clk 0:01:07]} 28. Kxg2 {[%clk 0:00:43]}  Qc4 {[%clk 0:01:03]} 29. e3 {[%clk 0:00:36]}  Nb4 {[%clk 0:00:55]} 30. Rc1 {[%clk 0:00:31]}  Rac8 {[%clk 0:00:54]} 31. a5 {[%clk 0:00:28]}  Nd3 {[%clk 0:00:54]} 32. Rf1 {[%clk 0:00:19]}  Qd5+ {[%clk 0:00:51]} 33. Kg1 {[%clk 0:00:18]}  Qxg5 {[%clk 0:00:50]} 34. Qxd6 {[%clk 0:00:17]}  c2 {[%clk 0:00:46]} 35. Nc6 {[%clk 0:00:17]}  c1=Q {[%clk 0:00:41]} 0-1


[Site "https://www.chess.com"]

[Event "Titled Tuesday Blitz November 16 2021"]
[White "Leitao, Rafael"]
[Black "Pour Agha Bala, Amirreza"]
[WhiteFideId "2101246"]
[BlackFideId "12572896"]
[WhiteElo "2609"]
[BlackElo "2313"]
[Result "0-1"]
[Round "08"]
[TimeControl "180+1"]
[Date "2021.11.16"]
[WhiteClock "0:00:17"]
[BlackClock "0:01:18"]

1. c4 {[%clk 0:03:00]}  e6 {[%clk 0:02:59]} 2. g3 {[%clk 0:03:00]}  d5 {[%clk 0:02:59]} 3. Bg2 {[%clk 0:03:00]}  Nf6 {[%clk 0:03:00]} 4. Nf3 {[%clk 0:03:00]}  dxc4 {[%clk 0:02:58]} 5. Qa4+ {[%clk 0:02:59]}  Bd7 {[%clk 0:02:55]} 6. Qxc4 {[%clk 0:02:59]}  Bc6 {[%clk 0:02:56]} 7. O-O {[%clk 0:02:49]}  Nbd7 {[%clk 0:02:55]} 8. d4 {[%clk 0:02:42]}  Nb6 {[%clk 0:02:52]} 9. Qd3 {[%clk 0:02:40]}  Be7 {[%clk 0:02:39]} 10. Nc3 {[%clk 0:02:22]}  Bb4 {[%clk 0:02:30]} 11. Bg5 {[%clk 0:02:17]}  Nbd7 {[%clk 0:02:28]} 12. Rfe1 {[%clk 0:01:55]}  Bxc3 {[%clk 0:02:24]} 13. bxc3 {[%clk 0:01:54]}  h6 {[%clk 0:02:20]} 14. Bxf6 {[%clk 0:01:53]}  Qxf6 {[%clk 0:02:17]} 15. e4 {[%clk 0:01:52]}  O-O {[%clk 0:02:17]} 16. d5 {[%clk 0:01:40]}  exd5 {[%clk 0:02:16]} 17. exd5 {[%clk 0:01:40]}  Ba4 {[%clk 0:02:16]} 18. Qe3 {[%clk 0:01:09]}  b6 {[%clk 0:02:04]} 19. Nd4 {[%clk 0:01:07]}  Nc5 {[%clk 0:02:02]} 20. Qe7 {[%clk 0:01:03]}  Qg5 {[%clk 0:01:45]} 21. Qxg5 {[%clk 0:00:58]}  hxg5 {[%clk 0:01:46]} 22. Re7 {[%clk 0:00:57]}  Bd7 {[%clk 0:01:44]} 23. Nb3 {[%clk 0:00:51]}  Rfe8 {[%clk 0:01:42]} 24. Rxe8+ {[%clk 0:00:44]}  Rxe8 {[%clk 0:01:40]} 25. Nxc5 {[%clk 0:00:44]}  bxc5 {[%clk 0:01:40]} 26. Bf3 {[%clk 0:00:34]}  g4 {[%clk 0:01:38]} 27. Bd1 {[%clk 0:00:34]}  Re1+ {[%clk 0:01:31]} 28. Kg2 {[%clk 0:00:35]}  Bb5 {[%clk 0:01:29]} 29. f4 {[%clk 0:00:20]}  gxf3+ {[%clk 0:01:21]} 30. Kxf3 {[%clk 0:00:19]}  Ba4 {[%clk 0:01:21]} 31. Bxa4 {[%clk 0:00:18]}  Rxa1 {[%clk 0:01:21]} 32. Bb3 {[%clk 0:00:19]}  a5 {[%clk 0:01:17]} 33. h4 {[%clk 0:00:19]}  a4 {[%clk 0:01:18]} 34. Bxa4 {[%clk 0:00:17]}  Rxa2 {[%clk 0:01:18]} 0-1


[Site "https://www.chess.com"]